fUST/lending_fUST_20240821
["ID","MTS","AMOUNT","RATE_DAILY","PERIOD"]
[335414068,1724206829311,1367.225,8.502e-05,2]
[335414072,1724207231170,-1945.43198871,0.00012782,2]
[335414073,1724207231192,-300.0,0.00013689,2]
[335414074,1724207231213,-739.83809518,0.0001369,2]
[335414079,1724207355139,-8704.81697355,0.0001369,2]
[335414080,1724207358093,-366.34493127,0.0001369,2]
[335414081,1724207358114,-162.17692,0.00014247,2]
[335414082,1724207358135,-1037.56632728,0.00014519,2]
[335414083,1724207358156,-154.76238314,0.00016594,2]
[335414084,1724207358177,-154.67385873,0.00016594,2]
[335414085,1724207367113,-272.2668268,0.00019178,2]
[335414086,1724207367134,-251.0,0.00019178,2]
[335414087,1724207367154,-186.0675383,0.0001918,2]
[335414088,1724207367176,-171.183057,0.0001977,2]
[335414089,1724207367196,-156.6552172,0.0002,2]
[335414090,1724207367217,-155.5078337,0.0002,2]
[335414091,1724207367239,-500.0,0.00020195,2]
[335414092,1724207367258,-500.0,0.00020527,2]
[335414093,1724207367279,-1015.4160158,0.00021,2]
[335414134,1724207438691,-239.3137045,0.0002,2]
[335414135,1724207438702,-1984.5839842,0.00021,2]
[335414136,1724207438713,-287.17173053,0.00021,2]
[335414137,1724207438723,-287.17173053,0.00021,2]
[335414138,1724207438733,-201.75885024,0.0002101,2]
[335414155,1724207440778,-3822.81025076,0.0002101,2]
[335414156,1724207440788,-162.17692,0.00021065,2]
[335414157,1724207440798,-324.3,0.00021126,2]
[335414158,1724207440808,-503.33031317,0.00021464,2]
[335414159,1724207440818,-500.0,0.00021569,2]
[335414160,1724207440828,-500.0,0.00021607,2]
[335414161,1724207440838,-4173.75188319,0.00021649,2]
[335414162,1724207440850,-2118.91881641,0.00021649,2]
[335414163,1724207440859,-324.3,0.00022387,2]
[335414164,1724207440868,-324.3,0.00023648,2]
[335414165,1724207440878,-10343.5134042,0.00023865,2]
[335414166,1724207440887,-953.53947811,0.00023888,2]
[335414167,1724207440897,-259.93028485,0.00023897,2]
[335414168,1724207440907,-154.82705037,0.00023906,2]
[335414169,1724207440917,-882.99597685,0.00023939,2]
[335414170,1724207440928,-351.92,0.0002399,3]
[335414171,1724207440940,-108148.22501012,0.00024,60]
[335414172,1724207440952,-500.0,0.00024411,2]
[335414173,1724207440961,-782.718708,0.00024448,2]
[335414174,1724207440970,-782.718708,0.00024448,2]
[335414175,1724207440980,-500.0,0.00024471,2]
[335414176,1724207440990,-200.0,0.00024658,15]
[335414177,1724207441000,-154.60575532,0.00024688,2]
[335414178,1724207441011,-277.68803325,0.00024756,2]
[335414179,1724207441021,-277.68803325,0.00024756,2]
[335414180,1724207441031,-585.19324922,0.00024798,2]
[335414181,1724207441040,-160.8404123,0.00024803,2]
[335414182,1724207441049,-324.3,0.00024909,2]
[335414183,1724207441061,-500.0,0.00024963,2]
[335414184,1724207441072,-154.60575532,0.00025,2]
[335414185,1724207441082,-165.0,0.00025,2]
[335414186,1724207441094,-44649.67636262,0.00025,2]
[335414187,1724207441105,-503.74077902,0.00025,2]
[335414188,1724207441115,-884.32654361,0.00025391,2]
[335414189,1724207441124,-500.0,0.00025784,2]
[335414190,1724207441133,-165.0,0.0002589,2]
[335414191,1724207441143,-276.92643235,0.00026,120]
[335414192,1724207441152,-324.3,0.0002617,2]
[335414193,1724207441161,-7458.94652043,0.0002649,2]
[335414194,1724207441170,-683.66,0.000266,31]
[335414195,1724207441179,-683.66,0.000266,31]
[335414196,1724207441189,-683.66,0.000266,31]
[335414197,1724207441199,-683.66,0.000266,31]
[335414198,1724207441208,-683.66,0.000266,31]
[335414199,1724207441217,-683.66,0.000266,31]
[335414200,1724207441226,-683.66,0.000266,31]
[335414201,1724207441235,-683.66,0.000266,31]
[335414202,1724207441245,-683.66,0.000266,31]
[335414203,1724207441255,-683.66,0.000266,31]
[335414204,1724207441265,-683.66,0.000266,31]
[335414205,1724207441275,-683.66,0.000266,31]
[335414206,1724207441283,-884.32654361,0.00026976,2]
[335414207,1724207441293,-742.07419814,0.00027236,2]
[335414208,1724207441304,-500.0,0.00027292,2]
[335414209,1724207441314,-324.3,0.00027432,2]
[335414210,1724207441324,-500.0,0.00027632,2]
[335414211,1724207441334,-162.17692,0.00027884,2]
[335414212,1724207441344,-1656.45293684,0.0002799,2]
[335414213,1724207441353,-4900.0,0.00028,2]
[335414214,1724207441363,-170.179137,0.00028436,2]
[335414215,1724207441373,-884.32654361,0.00028561,2]
[335414216,1724207441383,-212.75437216,0.00028599,2]
[335414217,1724207441393,-500.0,0.00028599,2]
[335414218,1724207441402,-595.33827201,0.00028599,2]
[335414219,1724207441411,-500.0,0.00028599,2]
[335414220,1724207441421,-500.0,0.00028599,2]
[335414221,1724207441430,-500.0,0.00028599,2]
[335414222,1724207441441,-683.66,0.000286,31]
[335414223,1724207441452,-683.66,0.000286,31]
[335414224,1724207441461,-683.66,0.000286,31]
[335414225,1724207441472,-683.66,0.000286,31]
[335414226,1724207441482,-683.66,0.000286,31]
[335414227,1724207441493,-683.66,0.000286,31]
[335414228,1724207441503,-683.66,0.000286,31]
[335414229,1724207441513,-683.66,0.000286,31]
[335414230,1724207441523,-683.66,0.000286,31]
[335414231,1724207441532,-683.66,0.000286,31]
[335414232,1724207441542,-683.66,0.000286,31]
[335414233,1724207441551,-683.66,0.000286,31]
[335414234,1724207441562,-683.66,0.000286,31]
[335414235,1724207441572,-683.66,0.000286,31]
[335414236,1724207441582,-683.66,0.000286,31]
[335414237,1724207441593,-683.66,0.000286,31]
[335414238,1724207441713,-683.66,0.000286,31]
[335414239,1724207441726,-683.66,0.000286,31]
[335414240,1724207441739,-683.66,0.000286,31]
[335414241,1724207441751,-683.66,0.000286,31]
[335414242,1724207441761,-683.66,0.000286,31]
[335414243,1724207441771,-683.66,0.000286,31]
[335414244,1724207441782,-683.66,0.000286,31]
[335414245,1724207441792,-683.66,0.000286,31]
[335414246,1724207441804,-324.3,0.00028693,2]
[335414247,1724207441813,-151.0,0.00028693,2]
[335414248,1724207441824,-500.0,0.00028733,2]
[335414249,1724207441834,-6242.32429991,0.0002987,3]
[335414250,1724207441844,-12484.6485998,0.0002988,3]
[335414251,1724207441855,-14494.84691048,0.000299,2]
[335414252,1724207441866,-324.3,0.00029954,2]
[335414253,1724207441877,-151.0,0.00029954,2]
[335414254,1724207441889,-178.72751622,0.0003,5]
[335414255,1724207441899,-884.32654361,0.00030145,2]
[335414256,1724207441909,-197.57587951,0.00030589,2]
[335414257,1724207441919,-12484.6485998,0.00030669,4]
[335414258,1724207441929,-6242.32429991,0.0003069,4]
[335414259,1724207441939,-683.66,0.000307,31]
[335414260,1724207441950,-683.66,0.000307,31]
[335414261,1724207441960,-683.66,0.000307,31]
[335414262,1724207441971,-683.66,0.000307,31]
[335414263,1724207441983,-683.66,0.000307,31]
[335414264,1724207441996,-683.66,0.000307,31]
[335414265,1724207442007,-683.66,0.000307,31]
[335414266,1724207442019,-683.66,0.000307,31]
[335414267,1724207442030,-683.66,0.000307,31]
[335414268,1724207442040,-683.66,0.000307,31]
[335414269,1724207442049,-683.66,0.000307,31]
[335414270,1724207442060,-683.66,0.000307,31]
[335414271,1724207442070,-683.66,0.000307,31]
[335414272,1724207442080,-683.66,0.000307,31]
[335414273,1724207442089,-683.66,0.000307,31]
[335414274,1724207442099,-683.66,0.000307,31]
[335414275,1724207442108,-683.66,0.000307,31]
[335414276,1724207442117,-683.66,0.000307,31]
[335414277,1724207442127,-683.66,0.000307,31]
[335414278,1724207442136,-683.66,0.000307,31]
[335414279,1724207442146,-683.66,0.000307,31]
[335414280,1724207442157,-683.66,0.000307,31]
[335414281,1724207442166,-683.66,0.000307,31]
[335414282,1724207442175,-683.66,0.000307,31]
[335414283,1724207442184,-153.0,0.00030759,2]
[335414284,1724207442194,-153.0,0.00030759,2]
[335414285,1724207442203,-324.3,0.00031215,3]
[335414286,1724207442212,-151.0,0.00031215,3]
[335414287,1724207442221,-884.32654361,0.0003173,2]
[335414288,1724207442230,-6242.32429991,0.0003199,4]
[335414289,1724207442239,-57570.14793085,0.00032,2]
[335414290,1724207442248,-500.0,0.00032265,7]
[335414291,1724207442257,-324.3,0.00032477,3]
[335414292,1724207442268,-151.0,0.00032477,3]
[335414293,1724207442286,-167.0,0.00032622,2]
[335414294,1724207442296,-6242.32429991,0.0003269,4]
[335414295,1724207442306,-683.66,0.000327,31]
[335414296,1724207442315,-683.66,0.000327,31]
[335414297,1724207442324,-683.66,0.000327,31]
[335414298,1724207442333,-683.66,0.000327,31]
[335414299,1724207442342,-683.66,0.000327,31]
[335414300,1724207442351,-683.66,0.000327,31]
[335414301,1724207442361,-263.44497045,0.000327,31]
[335414306,1724207443820,-420.21502955,0.000327,31]
[335414307,1724207443830,-683.66,0.000327,31]
[335414308,1724207443842,-683.66,0.000327,31]
[335414309,1724207443852,-683.66,0.000327,31]
[335414310,1724207443862,-683.66,0.000327,31]
[335414311,1724207443872,-683.66,0.000327,31]
[335414312,1724207443883,-683.66,0.000327,31]
[335414313,1724207443892,-683.66,0.000327,31]
[335414314,1724207443902,-683.66,0.000327,31]
[335414315,1724207443912,-683.66,0.000327,31]
[335414316,1724207443921,-683.66,0.000327,31]
[335414317,1724207443931,-683.66,0.000327,31]
[335414318,1724207443941,-683.66,0.000327,31]
[335414319,1724207443951,-683.66,0.000327,31]
[335414320,1724207443961,-683.66,0.000327,31]
[335414321,1724207443970,-683.66,0.000327,31]
[335414322,1724207443980,-683.66,0.000327,31]
[335414323,1724207443990,-683.66,0.000327,31]
[335414324,1724207444000,-1000.0,0.00032876,2]
[335414325,1724207444010,-5944.96,0.00032876,21]
[335414326,1724207444019,-500.0,0.00032945,7]
[335414327,1724207444029,-444.0,0.00033,7]
[335414328,1724207444039,-18360.00172955,0.00033,30]
[335414329,1724207444048,-156.21496732,0.00033234,3]
[335414330,1724207444058,-884.32654361,0.00033315,2]
[335414331,1724207444067,-1000.0,0.00033424,2]
[335414332,1724207444078,-7727.0,0.00033443,2]
[335414333,1724207444087,-500.0,0.00033627,7]
[335414334,1724207444097,-324.3,0.00033738,4]
[335414335,1724207444107,-151.0,0.00033738,4]
[335414336,1724207444116,-1000.0,0.00033972,2]
[335414337,1724207444126,-6242.32429991,0.00033978,4]
[335414338,1724207444136,-300.0,0.00034,9]
[335414339,1724207444146,-624.70198784,0.00034015,7]
[335414340,1724207444156,-150.112233,0.000342,10]
[335414341,1724207444166,-5944.96,0.00034246,21]
[335414342,1724207444175,-214.085161,0.00034247,2]
[335414343,1724207444185,-1000.0,0.0003452,2]
[335414344,1724207444194,-150.112233,0.000346,6]
[335414345,1724207444204,-160.0,0.00034676,3]
[335414346,1724207444213,-160.0,0.00034676,5]
[335414347,1724207444223,-162.17692,0.00034703,2]
[335414348,1724207444233,-683.66,0.000348,31]
[335414349,1724207444243,-683.66,0.000348,31]
[335414350,1724207444253,-683.66,0.000348,31]
[335414351,1724207444262,-683.66,0.000348,31]
[335414352,1724207444272,-683.66,0.000348,31]
[335414353,1724207444281,-683.66,0.000348,31]
[335414354,1724207444290,-683.66,0.000348,31]
[335414355,1724207444299,-683.66,0.000348,31]
[335414356,1724207444309,-683.66,0.000348,31]
[335414357,1724207444319,-683.66,0.000348,31]
[335414358,1724207444328,-683.66,0.000348,31]
[335414359,1724207444338,-683.66,0.000348,31]
[335414360,1724207444347,-683.66,0.000348,31]
[335414361,1724207444358,-683.66,0.000348,31]
[335414362,1724207444368,-683.66,0.000348,31]
[335414363,1724207444378,-683.66,0.000348,31]
[335414364,1724207444388,-197.57587951,0.00034831,2]
[335414365,1724207444397,-884.32654361,0.000349,2]
[335414366,1724207444407,-6242.32429991,0.00034901,4]
[335414367,1724207444417,-12484.6485998,0.00034911,4]
[335414368,1724207444426,-22688.95644027,0.00034921,9]
[335414369,1724207444436,-49938.5943993,0.00034921,4]
[335414370,1724207444446,-726.29783284,0.0003493,2]
[335414371,1724207444456,-21583.53747764,0.00034931,9]
[335414372,1724207444466,-1693.99804435,0.00034931,4]
[335414373,1724207444476,-14125.33828871,0.00034931,7]
[335414374,1724207444486,-303.82362742,0.00034931,4]
[335414375,1724207444496,-96021.07048623,0.00034931,60]
[335414376,1724207444514,-3197.90393983,0.00034931,60]
[335414388,1724207446640,-2737.3649414,0.00034931,60]
[335414392,1724207446732,-331.69667599,0.00034931,60]
[335414393,1724207450820,162.17692,0.00014247,2]
[335414395,1724207507807,2936.35788932,0.00017269,2]
[335414396,1724207507833,3147.66934165,0.00017269,2]
[335414397,1724207507855,3031.14991435,0.00017269,2]
[335414398,1724207507879,3160.87850337,0.00017269,2]
[335414399,1724207507901,3107.1194,0.00017269,2]
[335414400,1724207507923,2940.0,0.00017269,2]
[335414401,1724208350121,-180.0,0.00012355,2]
[335414402,1724208350141,-245.90664773,0.00012356,2]
[335414403,1724208436263,-621.06231277,9.9e-05,2]
[335414404,1724208436287,-991.25718944,0.00012356,2]
[335414405,1724208436309,-1225.19353211,0.00012356,2]
[335414406,1724208438107,-185.77370002,0.00012356,2]
[335414407,1724208546137,-3000.0,9.9e-05,2]
[335414408,1724208546162,-3310.81420422,0.00012356,2]
[335414409,1724208546185,-218.7590501,0.00012356,2]
[335414410,1724208546207,-245.41374063,0.00012356,2]
[335414411,1724208546229,-2112.82706515,0.00012356,2]
[335414412,1724208546251,-3620.47609977,0.00012356,2]
[335414413,1724208546273,-991.25718944,0.00012356,2]
[335414414,1724208546295,-2515.87857167,0.00012629,2]
[335414415,1724208546319,-166.6666705,0.0001264,2]
[335414416,1724208546340,-819.14035106,0.00012971,2]
[335414417,1724208546362,-900.71551124,0.00012971,2]
[335414418,1724208546383,-154.87973203,0.00012985,2]
[335414419,1724208546403,-154.73041474,0.00012985,2]
[335414420,1724208546425,-181.11086519,0.00012989,2]
[335414421,1724208546449,-602.94322686,0.00012991,2]
[335414422,1724208546471,-155.0635174,0.00013596,4]
[335414423,1724208546491,-42239.07423283,0.00013697,2]
[335414424,1724208546512,-2667.4655104,0.00013699,2]
[335414425,1724208547119,-332.5344896,0.00013699,2]
[335414426,1724208547145,-232.171278,0.00013699,2]
[335414427,1724208547168,-156.53903536,0.00014245,2]
[335414428,1724208547192,-162.1769277,0.00014247,2]
[335414429,1724208547216,-165.996954,0.00014247,2]
[335414430,1724208547239,-254.4528707,0.00015155,2]
[335414431,1724208547262,-8503.012789,0.00015258,2]
[335414432,1724208548938,38.38502124,9.801e-05,2]
[335414433,1724208548964,245.593488,9.801e-05,2]
[335414434,1724208550153,-216.62192541,9.801e-05,2]
[335414435,1724208550177,-166.688108,0.00019178,2]
[335414436,1724208550198,-142.41731167,0.00019178,2]
[335414437,1724208566075,245.98,0.00015,2]
[335414438,1724208566099,239.46476884,0.00015,2]
[335414439,1724208566120,257.22365896,0.00015,2]
[335414445,1724208573154,-108.84208665,0.00015,2]
[335414446,1724208573179,-108.58268833,0.00019178,2]
[335414447,1724208573201,-167.885183,0.00019178,2]
[335414448,1724208573224,-500.0,0.00019267,2]
[335414449,1724208573248,-3147.55666246,0.00019725,2]
[335414450,1724208573283,-9565.27434938,0.00019725,2]
[335414477,1724208632668,-245.41374063,0.00014977,2]
[335414478,1724208632678,-816.40888481,0.00014977,2]
[335414480,1724208632688,-218.7590501,0.00014977,2]
[335414482,1724208632697,-1355.0044729,0.00014977,2]
[335414483,1724208632707,-3620.47609977,0.00014977,2]
[335414485,1724208632716,-235.0,0.00019789,3]
[335414487,1724208632726,-705.02,0.00019789,3]
[335414489,1724208632735,-500.0,0.00019866,2]
[335414490,1724208632744,-819.6305293,0.0001999,2]
[335414491,1724208632792,-315.27922604,0.0001999,2]
[335414536,1724208638750,-245.41374063,0.00019725,2]
[335414537,1724208638760,-18878.73259956,0.0001999,2]
[335414538,1724208638772,-1260.81854444,0.0002,2]
[335414539,1724208638782,-10513.28749774,0.0002,2]
[335414540,1724208638791,-156.6552172,0.0002,2]
[335414541,1724208638801,-500.0,0.00020115,2]
[335414542,1724208638811,-154.82705037,0.00020219,2]
[335414543,1724208638820,-435.0,0.00020224,2]
[335414544,1724208638830,-154.71377951,0.0002024,2]
[335414545,1724208638839,-500.0,0.0002039,2]
[335414546,1724208638849,-232.171278,0.00020548,2]
[335414547,1724208638859,-500.0,0.00020825,2]
[335414548,1724208638868,-154.89311412,0.00020932,2]
[335414549,1724208638877,-3000.0,0.00021,2]
[335414550,1724208638887,-3000.0,0.0002101,2]
[335414551,1724208638896,-3000.0,0.0002102,2]
[335414552,1724208638906,-5125.430899,0.0002103,2]
[335414553,1724208638915,-470.0,0.00021159,3]
[335414554,1724208638925,-525.0,0.00021693,2]
[335414555,1724208638934,-233.35918642,0.0002176,2]
[335414556,1724208638943,-500.0,0.00021817,2]
[335414557,1724208638953,-173.14098692,0.00021879,2]
[335414558,1724208638962,-165.996954,0.00021918,2]
[335414559,1724208638971,-3574.19766778,0.00022,30]
[335414560,1724208638980,-302.27461649,0.00022,2]
[335414561,1724208638991,-453.32148653,0.00022,2]
[335414562,1724208639001,-302.27461649,0.0002222,2]
[335414563,1724208639011,-302.27461649,0.0002244,2]
[335414564,1724208639023,-302.27461649,0.0002266,2]
[335414565,1724208639033,-500.0,0.00022848,2]
[335414566,1724208639042,-302.27461649,0.0002288,2]
[335414567,1724208639051,-525.0,0.00022903,2]
[335414568,1724208639061,-500.0,0.00022914,2]
[335414569,1724208639071,-453.41192473,0.000231,4]
[335414570,1724208639080,-453.41192473,0.0002332,4]
[335414571,1724208639090,-500.0,0.00023351,2]
[335414572,1724208639100,-453.41192473,0.0002354,4]
[335414573,1724208639110,-10343.5134042,0.00023599,2]
[335414574,1724208639124,-20013.6423549,0.00023601,3]
[335414575,1724208639134,-500.0,0.00023681,2]
[335414576,1724208639143,-453.41192473,0.0002376,4]
[335414577,1724208639152,-4721.78143635,0.00023909,2]
[335414578,1724208639163,-453.41192472,0.0002398,4]
[335414579,1724208639172,-525.0,0.00024113,2]
[335414580,1724208639181,-953.53947811,0.00024657,2]
[335414581,1724208639191,-782.718708,0.00024657,2]
[335414582,1724208639200,-200.0,0.00024658,15]
[335414583,1724208639211,-200.0,0.00024658,2]
[335414584,1724208639221,-380.0,0.00024658,2]
[335414585,1724208639233,-154.62117811,0.00024688,2]
[335414586,1724208639246,-882.99597685,0.00024688,2]
[335414587,1724208639257,-160.8404123,0.00024688,2]
[335414588,1724208639268,-277.68803325,0.0002469,2]
[335414589,1724208639277,-154.62117811,0.00025,2]
[335414590,1724208639287,-154.62117811,0.00025,2]
[335414591,1724208639296,-369.96805713,0.00025,30]
[335414592,1724208639306,-259.064396,0.00025,120]
[335414593,1724208639315,-308.47910106,0.00025,2]
[335414594,1724208639324,-503.84128596,0.00025,2]
[335414595,1724208639334,-500.0,0.00025095,2]
[335414596,1724208639344,-500.0,0.00025187,2]
[335414597,1724208639353,-503.84128596,0.0002525,2]
[335414598,1724208639362,-525.0,0.00025322,2]
[335414599,1724208639371,-156.368346,0.000254,8]
[335414600,1724208639380,-287.17173053,0.00025454,2]
[335414601,1724208639390,-226.13158555,0.00025454,2]
[335414602,1724208639400,-503.84128596,0.000255,2]
[335414603,1724208639409,-154.60575632,0.00025555,2]
[335414604,1724208639418,-500.0,0.00025614,2]
[335414605,1724208639427,-500.0,0.00025646,2]
[335414606,1724208639436,-503.84128596,0.0002575,2]
[335414607,1724208639445,-503.84128596,0.00026,2]
[335414608,1724208639454,-500.0,0.00026012,2]
[335414609,1724208639463,-500.0,0.00026206,2]
[335414610,1724208639473,-503.84128596,0.0002625,2]
[335414611,1724208639483,-503.84128596,0.000265,2]
[335414612,1724208639492,-500.0,0.00026514,2]
[335414613,1724208639502,-525.0,0.00026532,2]
[335414614,1724208639511,-512.37,0.000266,31]
[335414615,1724208639523,-512.37,0.000266,31]
[335414616,1724208639532,-512.37,0.000266,31]
[335414617,1724208639542,-512.37,0.000266,31]
[335414618,1724208639552,-512.37,0.000266,31]
[335414619,1724208639561,-512.37,0.000266,31]
[335414620,1724208639570,-512.37,0.000266,31]
[335414621,1724208639645,-512.37,0.000266,31]
[335414622,1724208639667,-512.37,0.000266,31]
[335414623,1724208639677,-512.37,0.000266,31]
[335414624,1724208639686,-512.37,0.000266,31]
[335414625,1724208639695,-512.37,0.000266,31]
[335414626,1724208639705,-150.112233,0.000266,6]
[335414627,1724208639714,-503.84128596,0.0002675,2]
[335414628,1724208639723,-500.0,0.00026807,2]
[335414629,1724208639732,-199.0,0.00027,2]
[335414630,1724208639741,-503.84128596,0.00027,2]
[335414631,1724208639751,-503.84128591,0.0002725,2]
[335414632,1724208639760,-6617.71510224,0.0002732,30]
[335414633,1724208639770,-525.0,0.00027741,2]
[335414634,1724208639781,-150.112233,0.000278,9]
[335414635,1724208639789,-225.0,0.00028,2]
[335414636,1724208639799,-369.21673832,0.00028,30]
[335414637,1724208639809,-500.0,0.00028123,2]
[335414638,1724208639819,-552.97547408,0.00028315,2]
[335414639,1724208639828,-196.50133475,0.000285,2]
[335414640,1724208639838,-20013.6423549,0.0002859,3]
[335414641,1724208639847,-512.37,0.000286,31]
[335414642,1724208639856,-512.37,0.000286,31]
[335414643,1724208639866,-512.37,0.000286,31]
[335414644,1724208639875,-512.37,0.000286,31]
[335414645,1724208639885,-512.37,0.000286,31]
[335414646,1724208639894,-512.37,0.000286,31]
[335414647,1724208639903,-512.37,0.000286,31]
[335414648,1724208639912,-512.37,0.000286,31]
[335414649,1724208639922,-512.37,0.000286,31]
[335414650,1724208639931,-512.37,0.000286,31]
[335414651,1724208639940,-512.37,0.000286,31]
[335414652,1724208639949,-512.37,0.000286,31]
[335414653,1724208639958,-512.37,0.000286,31]
[335414654,1724208639967,-512.37,0.000286,31]
[335414655,1724208639976,-512.37,0.000286,31]
[335414656,1724208639987,-512.37,0.000286,31]
[335414657,1724208639996,-512.37,0.000286,31]
[335414658,1724208640006,-512.37,0.000286,31]
[335414659,1724208640016,-512.37,0.000286,31]
[335414660,1724208640026,-512.37,0.000286,31]
[335414661,1724208640035,-512.37,0.000286,31]
[335414662,1724208640045,-512.37,0.000286,31]
[335414663,1724208640054,-512.37,0.000286,31]
[335414664,1724208640064,-512.37,0.000286,31]
[335414665,1724208640074,-525.0,0.00028951,2]
[335414666,1724208640083,-151.0,0.00028951,2]
[335414667,1724208640093,-300.0,0.00029,2]
[335414668,1724208640102,-150.112233,0.00029,8]
[335414669,1724208640111,-634.42098133,0.00029177,2]
[335414670,1724208640124,-500.0,0.00029331,2]
[335414671,1724208640134,-561.31651876,0.00029463,2]
[335414672,1724208640143,-165.996954,0.00029589,2]
[335414673,1724208640153,-501.99527765,0.00029744,2]
[335414674,1724208640163,-178.72751622,0.0003,5]
[335414675,1724208640172,-250.0,0.0003,120]
[335414676,1724208640180,-151.0,0.0003,120]
[335414677,1724208640190,-639.0,0.0003,120]
[335414678,1724208640200,-300.0,0.0003,2]
[335414679,1724208640211,-274.0,0.0003,2]
[335414680,1724208640222,-525.0,0.00030161,2]
[335414681,1724208640232,-151.0,0.00030161,2]
[335414682,1724208640243,-150.112233,0.000302,9]
[335414683,1724208640252,-166.688108,0.00030594,2]
[335414684,1724208640261,-153.0,0.00030693,2]
[335414685,1724208640277,-153.0,0.00030693,2]
[335414686,1724208640290,-153.0,0.00030693,2]
[335414687,1724208640299,-153.0,0.00030693,2]
[335414688,1724208640309,-153.0,0.00030693,2]
[335414689,1724208640318,-153.0,0.00030693,2]
[335414690,1724208640327,-153.0,0.00030693,2]
[335414691,1724208640337,-153.0,0.00030693,2]
[335414693,1724208640347,-153.0,0.00030693,2]
[335414694,1724208640356,-153.0,0.00030693,2]
[335414695,1724208640365,-153.0,0.00030693,2]
[335414696,1724208640374,-153.0,0.00030693,2]
[335414697,1724208640383,-153.0,0.00030693,2]
[335414698,1724208640393,-153.0,0.00030693,2]
[335414699,1724208640402,-153.0,0.00030693,2]
[335414700,1724208640411,-153.0,0.00030693,2]
[335414701,1724208640421,-512.37,0.000307,31]
[335414702,1724208640433,-512.37,0.000307,31]
[335414703,1724208640443,-512.37,0.000307,31]
[335414704,1724208640452,-512.37,0.000307,31]
[335414705,1724208640462,-512.37,0.000307,31]
[335414706,1724208640472,-512.37,0.000307,31]
[335414707,1724208640483,-512.37,0.000307,31]
[335414708,1724208640495,-512.37,0.000307,31]
[335414709,1724208640506,-512.37,0.000307,31]
[335414710,1724208640516,-512.37,0.000307,31]
[335414712,1724208640527,-512.37,0.000307,31]
[335414714,1724208640537,-512.37,0.000307,31]
[335414716,1724208640546,-512.37,0.000307,31]
[335414718,1724208640555,-512.37,0.000307,31]
[335414719,1724208640564,-512.37,0.000307,31]
[335414721,1724208640574,-512.37,0.000307,31]
[335414723,1724208640583,-512.37,0.000307,31]
[335414725,1724208640593,-512.37,0.000307,31]
[335414727,1724208640603,-512.37,0.000307,31]
[335414728,1724208640612,-512.37,0.000307,31]
[335414730,1724208640622,-512.37,0.000307,31]
[335414732,1724208640631,-512.37,0.000307,31]
[335414734,1724208640640,-512.37,0.000307,31]
[335414736,1724208640649,-512.37,0.000307,31]
[335414737,1724208640660,-300.0,0.00031,4]
[335414739,1724208640669,-525.0,0.0003137,3]
[335414740,1724208640679,-151.0,0.0003137,3]
[335414741,1724208640688,-150.112233,0.000314,9]
[335414742,1724208640697,-196.50133473,0.00031666,2]
[335414743,1724208640707,-300.0,0.00032,5]